fUST/lending_fUST_20250819
["ID","MTS","AMOUNT","RATE_DAILY","PERIOD"]
[380088725,1755534646736,-151.0,0.00019346,2]
[380088726,1755534646746,-151.0,0.00019346,2]
[380088727,1755534646756,-211.94116543,0.00019346,2]
[380088728,1755534646765,-468.406995,0.00019346,2]
[380088729,1755534646775,-468.406995,0.00019346,2]
[380088730,1755534646785,-151.0,0.00019346,2]
[380088731,1755534646794,-151.0,0.00019346,2]
[380088732,1755534646803,-500.0,0.00019346,2]
[380088733,1755534646812,-151.0,0.00019346,2]
[380088734,1755534646822,-151.0,0.00019346,2]
[380088735,1755534646831,-151.0,0.00019346,2]
[380088736,1755534646840,-151.0,0.00019346,2]
[380088737,1755534646849,-151.0,0.00019346,2]
[380088738,1755534646858,-271.709396,0.00019346,2]
[380088739,1755534646867,-151.0,0.00019346,2]
[380088740,1755534646881,-151.0,0.00019346,2]
[380088741,1755534646894,-151.0,0.00019346,2]
[380088742,1755534646906,-455.758167,0.00019351,2]
[380088743,1755534646916,-455.758167,0.00019351,2]
[380088744,1755534646925,-151.0,0.00019351,2]
[380088745,1755534646935,-151.0,0.00019351,2]
[380088746,1755534646945,-1000.0,0.00019352,2]
[380088747,1755534646954,-2815.58284374,0.00019371,2]
[380088748,1755534646964,-281.0,0.00019399,2]
[380088749,1755534646974,-580.787823,0.000194,2]
[380088750,1755534646984,-151.0,0.000194,2]
[380088751,1755534646993,-151.0,0.000194,2]
[380088752,1755534647003,-281.0,0.00019412,2]
[380088753,1755534647012,-2919.75940895,0.00019426,2]
[380088754,1755534647022,-281.0,0.00019427,2]
[380088755,1755534647031,-151.0,0.00019451,2]
[380088756,1755534647040,-151.0,0.00019451,2]
[380088757,1755534647050,-151.0,0.00019451,2]
[380088758,1755534647059,-647.6,0.00019451,2]
[380088759,1755534647068,-647.6,0.00019451,2]
[380088760,1755534647077,-647.6,0.00019451,2]
[380088761,1755534647087,-647.6,0.00019451,2]
[380088762,1755534647095,-647.6,0.00019451,2]
[380088763,1755534647105,-647.6,0.00019451,2]
[380088764,1755534647115,-647.6,0.00019451,2]
[380088765,1755534647128,-647.8,0.00019451,2]
[380088766,1755534647137,-352.85184165,0.00019451,2]
[380088767,1755534647147,-913.07,0.00019452,2]
[380088768,1755534647159,-151.0,0.00019452,2]
[380088769,1755534647167,-151.0,0.00019452,2]
[380088770,1755534647177,-480.0,0.00019452,2]
[380088771,1755534647186,-152.58288,0.00019452,2]
[380088772,1755534647197,-151.0,0.00019452,2]
[380088773,1755534647207,-151.0,0.00019452,2]
[380088774,1755534647216,-480.0,0.00019452,2]
[380088775,1755534647225,-480.0,0.00019452,2]
[380088776,1755534647234,-965.45,0.00019452,2]
[380088777,1755534647243,-151.0,0.00019452,2]
[380088778,1755534647252,-480.0,0.00019452,2]
[380088779,1755534647261,-151.0,0.00019452,2]
[380088780,1755534647271,-151.817891,0.00019452,2]
[380088781,1755534647281,-151.0,0.00019452,2]
[380088782,1755534647290,-151.0,0.00019452,2]
[380088783,1755534647299,-151.0,0.00019452,2]
[380088784,1755534647308,-151.0,0.00019452,2]
[380088785,1755534647317,-480.0,0.00019452,2]
[380088786,1755534647326,-252.26099601,0.00019452,2]
[380088787,1755534647335,-151.0,0.00019452,2]
[380088788,1755534647344,-151.0,0.00019452,2]
[380088789,1755534647354,-444.39918591,0.00019452,2]
[380088790,1755534647363,-480.0,0.00019452,2]
[380088791,1755534647374,-480.0,0.00019452,2]
[380088792,1755534647383,-460.0,0.00019452,2]
[380088793,1755534647391,-480.0,0.00019452,2]
[380088794,1755534647400,-460.0,0.00019452,2]
[380088795,1755534647410,-480.0,0.00019452,2]
[380088796,1755534647419,-480.0,0.00019452,2]
[380088797,1755534647428,-480.0,0.00019452,2]
[380088798,1755534647438,-442.58470994,0.00019452,2]
[380088799,1755534647447,-480.0,0.00019452,2]
[380088800,1755534647456,-152.656134,0.00019452,2]
[380088801,1755534647465,-480.0,0.00019452,2]
[380088802,1755534647474,-151.0,0.00019452,2]
[380088803,1755534647483,-480.0,0.00019452,2]
[380088804,1755534647492,-499.20826434,0.00019452,2]
[380088805,1755534647501,-480.0,0.00019452,2]
[380088806,1755534647510,-480.0,0.00019452,2]
[380088807,1755534647520,-480.0,0.00019452,2]
[380088808,1755534647529,-484.52307798,0.00019452,2]
[380088809,1755534647538,-480.0,0.00019452,2]
[380088810,1755534647547,-480.0,0.00019452,2]
[380088811,1755534647557,-798.43,0.00019452,2]
[380088812,1755534647566,-850.28,0.00019452,2]
[380088813,1755534647575,-480.0,0.00019452,2]
[380088814,1755534647584,-480.0,0.00019452,2]
[380088815,1755534647593,-415.19459123,0.00019452,2]
[380088816,1755534647602,-488.13,0.00019452,2]
[380088817,1755534647612,-480.0,0.00019452,2]
[380088818,1755534647621,-255.026834,0.00019452,2]
[380088819,1755534647631,-151.0,0.00019452,2]
[380088820,1755534647640,-480.0,0.00019452,2]
[380088821,1755534647649,-480.0,0.00019452,2]
[380088822,1755534647658,-328.93838665,0.00019452,2]
[380088823,1755534647667,-480.0,0.00019452,2]
[380088824,1755534647676,-151.0,0.00019452,2]
[380088825,1755534647685,-151.0,0.00019452,2]
[380088826,1755534647694,-846.93,0.00019452,2]
[380088827,1755534647704,-151.0,0.00019452,2]
[380088828,1755534647714,-485.6,0.00019452,2]
[380088829,1755534647723,-480.0,0.00019452,2]
[380088830,1755534647732,-151.0,0.00019452,2]
[380088831,1755534647742,-164.932012,0.00019452,2]
[380088832,1755534647751,-480.0,0.00019452,2]
[380088833,1755534647760,-480.0,0.00019452,2]
[380088834,1755534647769,-480.0,0.00019452,2]
[380088835,1755534647779,-510.38341293,0.00019452,2]
[380088836,1755534647789,-480.0,0.00019452,2]
[380088837,1755534647798,-480.0,0.00019452,2]
[380088838,1755534647808,-480.0,0.00019452,2]
[380088839,1755534647819,-480.0,0.00019452,2]
[380088840,1755534647829,-480.0,0.00019452,2]
[380088841,1755534647909,-480.0,0.00019452,2]
[380088842,1755534647920,-480.0,0.00019452,2]
[380088843,1755534647934,-480.0,0.00019452,2]
[380088844,1755534647944,-480.0,0.00019452,2]
[380088845,1755534647957,-480.0,0.00019452,2]
[380088846,1755534647966,-480.0,0.00019452,2]
[380088847,1755534647975,-488.30800654,0.00019452,2]
[380088848,1755534647984,-295.67328,0.00019452,2]
[380088849,1755534647994,-480.0,0.00019452,2]
[380088850,1755534648003,-151.0,0.00019452,2]
[380088851,1755534648014,-501.3,0.00019452,2]
[380088852,1755534648028,-151.0,0.00019452,2]
[380088853,1755534648037,-480.0,0.00019452,2]
[380088854,1755534648046,-151.0,0.00019452,2]
[380088855,1755534648056,-151.0,0.00019452,2]
[380088856,1755534648065,-480.0,0.00019452,2]
[380088857,1755534648075,-480.0,0.00019452,2]
[380088858,1755534648084,-480.0,0.00019452,2]
[380088859,1755534648093,-480.0,0.00019452,2]
[380088860,1755534648103,-480.0,0.00019452,2]
[380088861,1755534648112,-512.32827945,0.00019452,2]
[380088862,1755534648125,-480.0,0.00019452,2]
[380088863,1755534648135,-480.0,0.00019452,2]
[380088864,1755534648145,-151.0,0.00019452,2]
[380088865,1755534648154,-151.0,0.00019452,2]
[380088866,1755534648164,-480.0,0.00019452,2]
[380088867,1755534648174,-480.0,0.00019452,2]
[380088868,1755534648184,-480.0,0.00019452,2]
[380088869,1755534648193,-480.0,0.00019452,2]
[380088870,1755534648206,-151.0,0.00019452,2]
[380088871,1755534648216,-151.0,0.00019452,2]
[380088872,1755534648225,-480.0,0.00019452,2]
[380088873,1755534648235,-480.0,0.00019452,2]
[380088874,1755534648245,-480.0,0.00019452,2]
[380088875,1755534648254,-480.0,0.00019452,2]
[380088876,1755534648265,-480.0,0.00019452,2]
[380088877,1755534648275,-480.0,0.00019452,2]
[380088878,1755534648284,-151.0,0.00019452,2]
[380088879,1755534648293,-151.0,0.00019452,2]
[380088880,1755534648302,-480.0,0.00019452,2]
[380088881,1755534648312,-480.0,0.00019452,2]
[380088882,1755534648321,-480.0,0.00019452,2]
[380088883,1755534648331,-480.0,0.00019452,2]
[380088884,1755534648341,-213.050048,0.00019452,2]
[380088885,1755534648350,-213.050048,0.00019452,2]
[380088886,1755534648359,-1214.39,0.00019452,2]
[380088887,1755534648369,-480.0,0.00019452,2]
[380088888,1755534648380,-480.0,0.00019452,2]
[380088889,1755534648389,-213.050048,0.00019452,2]
[380088890,1755534648399,-213.050048,0.00019452,2]
[380088891,1755534648408,-480.0,0.00019452,2]
[380088892,1755534648418,-556.49,0.00019452,2]
[380088893,1755534648427,-480.0,0.00019452,2]
[380088894,1755534648437,-480.0,0.00019452,2]
[380088895,1755534648446,-480.0,0.00019452,2]
[380088896,1755534648456,-480.0,0.00019452,2]
[380088897,1755534648465,-480.0,0.00019452,2]
[380088898,1755534648475,-480.0,0.00019452,2]
[380088899,1755534648485,-480.0,0.00019452,2]
[380088900,1755534648494,-151.0,0.00019452,2]
[380088901,1755534648504,-151.0,0.00019452,2]
[380088902,1755534648513,-214.766016,0.00019452,2]
[380088903,1755534648523,-214.766016,0.00019452,2]
[380088904,1755534648532,-214.766016,0.00019452,2]
[380088905,1755534648542,-480.0,0.00019452,2]
[380088906,1755534648552,-214.766016,0.00019452,2]
[380088907,1755534648561,-480.0,0.00019452,2]
[380088908,1755534648572,-480.0,0.00019452,2]
[380088909,1755534648581,-162.318845,0.00019452,2]
[380088910,1755534648591,-162.318845,0.00019452,2]
[380088911,1755534648600,-197.03698387,0.00019452,2]
[380088912,1755534648609,-162.318845,0.00019452,2]
[380088913,1755534648618,-162.318845,0.00019452,2]
[380088914,1755534648631,-480.0,0.00019452,2]
[380088915,1755534648641,-480.0,0.00019452,2]
[380088916,1755534648650,-480.0,0.00019452,2]
[380088917,1755534648660,-480.0,0.00019452,2]
[380088918,1755534648671,-386.55385779,0.00019452,2]
[380088919,1755534648681,-480.0,0.00019452,2]
[380088920,1755534648691,-183.26210436,0.00019452,2]
[380088921,1755534648701,-480.0,0.00019452,2]
[380088922,1755534648711,-480.0,0.00019452,2]
[380088923,1755534648720,-480.0,0.00019452,2]
[380088924,1755534648730,-480.0,0.00019452,2]
[380088925,1755534648739,-480.0,0.00019452,2]
[380088926,1755534648748,-480.0,0.00019452,2]
[380088927,1755534648757,-549.0,0.00019452,2]
[380088928,1755534648767,-480.0,0.00019452,2]
[380088929,1755534648776,-480.0,0.00019452,2]
[380088930,1755534648785,-484.61641326,0.00019452,2]
[380088931,1755534648795,-480.0,0.00019452,2]
[380088932,1755534648804,-442.09305444,0.00019452,2]
[380088933,1755534648814,-480.0,0.00019452,2]
[380088934,1755534648823,-465.60707221,0.00019452,2]
[380088935,1755534648833,-480.0,0.00019452,2]
[380088936,1755534648842,-480.0,0.00019452,2]
[380088937,1755534648851,-200.910113,0.00019452,2]
[380088938,1755534648861,-151.0,0.00019452,2]
[380088939,1755534648872,-480.0,0.00019452,2]
[380088940,1755534648881,-151.0,0.00019452,2]
[380088941,1755534648891,-480.0,0.00019452,2]
[380088942,1755534648900,-480.0,0.00019452,2]
[380088943,1755534648910,-480.0,0.00019452,2]
[380088944,1755534648919,-480.0,0.00019452,2]
[380088945,1755534648928,-480.0,0.00019452,2]
[380088946,1755534648938,-480.0,0.00019452,2]
[380088947,1755534648947,-480.0,0.00019452,2]
[380088948,1755534648957,-480.0,0.00019452,2]
[380088949,1755534648966,-480.0,0.00019452,2]
[380088950,1755534648976,-480.0,0.00019452,2]
[380088951,1755534648986,-480.0,0.00019452,2]
[380088952,1755534648995,-480.0,0.00019452,2]
[380088953,1755534649006,-480.0,0.00019452,2]
[380088954,1755534649016,-480.0,0.00019452,2]
[380088955,1755534649026,-618.8,0.00019452,2]
[380088956,1755534649035,-372.155439,0.00019452,2]
[380088957,1755534649045,-372.155439,0.00019452,2]
[380088958,1755534649054,-372.155439,0.00019452,2]
[380088959,1755534649065,-372.155439,0.00019452,2]
[380088960,1755534649074,-480.0,0.00019452,2]
[380088961,1755534649085,-480.0,0.00019452,2]
[380088962,1755534649094,-480.0,0.00019452,2]
[380088963,1755534649104,-480.0,0.00019452,2]
[380088964,1755534649114,-532.3722477,0.00019452,2]
[380088965,1755534649129,-480.0,0.00019452,2]
[380088966,1755534649139,-480.0,0.00019452,2]
[380088967,1755534649149,-480.0,0.00019452,2]
[380088968,1755534649224,-480.0,0.00019452,2]
[380088969,1755534649240,-480.0,0.00019452,2]
[380088970,1755534649250,-303.45752187,0.00019452,2]
[380088971,1755534649260,-480.0,0.00019452,2]
[380088972,1755534649269,-480.0,0.00019452,2]
[380088974,1755534649279,-483.46134409,0.00019452,2]
[380088976,1755534649288,-480.0,0.00019452,2]
[380088978,1755534649297,-480.0,0.00019452,2]
[380088980,1755534649307,-623.44607977,0.00019452,2]
[380088982,1755534649316,-480.0,0.00019452,2]
[380088983,1755534649325,-519.74,0.00019452,2]
[380088984,1755534649335,-480.0,0.00019452,2]
[380088985,1755534649344,-151.0,0.00019452,2]
[380088987,1755534649354,-1338.31,0.00019452,2]
[380088988,1755534649363,-151.0,0.00019452,2]
[380088989,1755534649372,-480.0,0.00019452,2]
[380088990,1755534649381,-734.77,0.00019452,2]
[380088991,1755534649391,-480.0,0.00019452,2]
[380088992,1755534649400,-606.55635367,0.00019452,2]
[380088993,1755534649410,-480.0,0.00019452,2]
[380088995,1755534649419,-587.42,0.00019452,2]
[380088996,1755534649429,-1043.06,0.00019452,2]
[380088997,1755534649438,-789.81,0.00019452,2]
[380088998,1755534649448,-480.0,0.00019452,2]
[380089000,1755534649457,-1790.78,0.00019452,2]
[380089001,1755534649467,-455.758167,0.00019452,2]
[380089002,1755534649477,-455.758167,0.00019452,2]
[380089003,1755534649487,-480.0,0.00019452,2]
[380089004,1755534649497,-2578.36,0.00019452,2]
[380089005,1755534649507,-455.758167,0.00019452,2]
[380089006,1755534649516,-480.0,0.00019452,2]
[380089007,1755534649524,-455.758167,0.00019452,2]
[380089008,1755534649533,-480.0,0.00019452,2]
[380089009,1755534649541,-480.0,0.00019452,2]
[380089011,1755534649551,-522.63,0.00019452,2]
[380089012,1755534649561,-463.89892861,0.00019452,2]
[380089013,1755534649570,-480.0,0.00019452,2]
[380089014,1755534649580,-461.89498444,0.00019452,2]
[380089015,1755534649589,-1341.79,0.00019452,2]
[380089016,1755534649598,-565.83826902,0.00019452,2]
[380089017,1755534649607,-3842.53,0.00019452,2]
[380089018,1755534649617,-480.0,0.00019452,2]
[380089019,1755534649627,-480.0,0.00019452,2]
[380089020,1755534649637,-480.0,0.00019452,2]
[380089021,1755534649646,-217.033418,0.00019452,2]
[380089022,1755534649656,-480.0,0.00019452,2]
[380089023,1755534649666,-2580.45,0.00019452,2]
[380089024,1755534649676,-382.2191684,0.00019452,2]
[380089025,1755534649687,-480.0,0.00019452,2]
[380089026,1755534649696,-480.0,0.00019452,2]
[380089027,1755534649706,-1105.45,0.00019452,2]
[380089028,1755534649715,-480.0,0.00019452,2]
[380089029,1755534649725,-480.0,0.00019452,2]
[380089030,1755534649734,-480.0,0.00019452,2]
[380089031,1755534649743,-480.0,0.00019452,2]
[380089032,1755534649753,-3819.78,0.00019452,2]
[380089033,1755534649762,-1190.83,0.00019452,2]
[380089034,1755534649771,-480.0,0.00019452,2]
[380089035,1755534649780,-480.0,0.00019452,2]
[380089036,1755534649792,-480.0,0.00019452,2]
[380089037,1755534649801,-480.0,0.00019452,2]
[380089038,1755534649810,-151.0,0.00019452,2]
[380089039,1755534649819,-151.0,0.00019452,2]
[380089040,1755534649829,-929.0,0.00019452,2]
[380089041,1755534649838,-480.0,0.00019452,2]
[380089042,1755534649847,-151.0,0.00019452,2]
[380089043,1755534649856,-480.0,0.00019452,2]
[380089044,1755534649866,-151.0,0.00019452,2]
[380089045,1755534649878,-1041.71,0.00019452,2]
[380089046,1755534649888,-461.78247917,0.00019452,2]
[380089047,1755534649897,-151.0,0.00019452,2]
[380089048,1755534649907,-480.0,0.00019452,2]
[380089049,1755534649917,-151.0,0.00019452,2]
[380089050,1755534649926,-480.0,0.00019452,2]
[380089051,1755534649935,-480.0,0.00019452,2]
[380089052,1755534649944,-480.0,0.00019452,2]
[380089053,1755534649953,-480.0,0.00019452,2]
[380089054,1755534649962,-151.0,0.00019452,2]
[380089055,1755534649972,-464.66732605,0.00019452,2]
[380089056,1755534649981,-151.0,0.00019452,2]
[380089057,1755534649990,-2030.61,0.00019452,2]
[380089058,1755534649999,-2348.35,0.00019452,2]
[380089059,1755534650009,-480.0,0.00019452,2]
[380089060,1755534650018,-579.69,0.00019452,2]
[380089061,1755534650028,-480.0,0.00019452,2]
[380089062,1755534650044,-480.0,0.00019452,2]
[380089063,1755534650055,-480.0,0.00019452,2]
[380089064,1755534650065,-1143.67,0.00019452,2]
[380089065,1755534650075,-151.0,0.00019452,2]
[380089066,1755534650084,-480.0,0.00019452,2]
[380089067,1755534650094,-151.0,0.00019452,2]
[380089068,1755534650103,-480.0,0.00019452,2]
[380089069,1755534650113,-480.0,0.00019452,2]
[380089070,1755534650126,-480.0,0.00019452,2]
[380089071,1755534650136,-151.0,0.00019452,2]
[380089072,1755534650145,-276.818356,0.00019452,2]
[380089073,1755534650155,-480.0,0.00019452,2]
[380089074,1755534650165,-480.0,0.00019452,2]
[380089075,1755534650174,-1318.74,0.00019452,2]
[380089076,1755534650184,-480.0,0.00019452,2]
[380089077,1755534650193,-483.20948155,0.00019452,2]
[380089078,1755534650202,-351.01497511,0.00019452,2]
[380089079,1755534650213,-480.0,0.00019452,2]
[380089080,1755534650222,-480.0,0.00019452,2]
[380089081,1755534650232,-480.0,0.00019452,2]
[380089082,1755534650242,-480.0,0.00019452,2]
[380089083,1755534650251,-1379.68,0.00019452,2]
[380089084,1755534650259,-480.0,0.00019452,2]
[380089085,1755534650269,-989.77,0.00019452,2]
[380089086,1755534650278,-468.406995,0.00019452,2]
[380089087,1755534650287,-468.406995,0.00019452,2]
[380089088,1755534650297,-480.0,0.00019452,2]
[380089089,1755534650305,-480.0,0.00019452,2]
[380089090,1755534650314,-709.96,0.00019452,2]
[380089091,1755534650324,-480.0,0.00019452,2]
[380089092,1755534650334,-468.406995,0.00019452,2]
[380089093,1755534650343,-480.0,0.00019452,2]
[380089094,1755534650353,-468.406995,0.00019452,2]
[380089095,1755534650432,-151.0,0.00019452,2]
[380089096,1755534650442,-151.0,0.00019452,2]
[380089097,1755534650451,-480.0,0.00019452,2]
[380089098,1755534650460,-1394.1,0.00019452,2]
[380089099,1755534650469,-480.0,0.00019452,2]
[380089100,1755534650479,-301.08531365,0.00019452,2]
[380089101,1755534650488,-480.0,0.00019452,2]
[380089102,1755534650497,-480.0,0.00019452,2]
[380089103,1755534650507,-151.0,0.00019452,2]
[380089104,1755534650517,-151.0,0.00019452,2]
[380089105,1755534650526,-630.73,0.00019452,2]
[380089106,1755534650536,-151.0,0.00019452,2]
[380089107,1755534650546,-480.0,0.00019452,2]
[380089108,1755534650556,-151.0,0.00019452,2]
[380089109,1755534650566,-480.0,0.00019452,2]
[380089110,1755534650575,-480.0,0.00019452,2]
[380089111,1755534650585,-480.0,0.00019452,2]
[380089112,1755534650594,-480.0,0.00019452,2]
[380089113,1755534650603,-480.0,0.00019452,2]
[380089114,1755534650613,-480.0,0.00019452,2]
[380089115,1755534650623,-480.0,0.00019452,2]
[380089116,1755534650632,-480.0,0.00019452,2]
[380089117,1755534650641,-151.0,0.00019452,2]
[380089118,1755534650651,-151.0,0.00019452,2]
[380089119,1755534650660,-1648.75,0.00019452,2]
[380089120,1755534650670,-597.57,0.00019452,2]
[380089121,1755534650679,-480.0,0.00019452,2]
[380089122,1755534650689,-473.26741213,0.00019452,2]
[380089123,1755534650698,-480.0,0.00019452,2]
[380089124,1755534650707,-480.0,0.00019452,2]
[380089125,1755534650716,-1017.73,0.00019452,2]
[380089126,1755534650726,-480.0,0.00019452,2]
[380089127,1755534650735,-480.0,0.00019452,2]
[380089128,1755534650745,-480.0,0.00019452,2]
[380089129,1755534650755,-480.0,0.00019452,2]
[380089130,1755534650764,-480.0,0.00019452,2]
[380089131,1755534650774,-480.0,0.00019452,2]
[380089132,1755534650783,-480.0,0.00019452,2]
[380089133,1755534650794,-480.0,0.00019452,2]
[380089134,1755534650804,-480.0,0.00019452,2]
[380089135,1755534650813,-728.8,0.00019452,2]
[380089136,1755534650822,-480.0,0.00019452,2]
[380089137,1755534650832,-480.0,0.00019452,2]
[380089138,1755534650841,-151.0,0.00019452,2]
[380089139,1755534650850,-151.0,0.00019452,2]
[380089140,1755534650859,-560.0,0.00019452,2]
[380089141,1755534650869,-480.0,0.00019452,2]
[380089142,1755534650879,-763.96,0.00019452,2]
[380089143,1755534650889,-1354.94,0.00019452,2]
[380089144,1755534650898,-480.0,0.00019452,2]
[380089145,1755534650907,-480.0,0.00019452,2]
[380089146,1755534650916,-151.0,0.00019452,2]
[380089147,1755534650926,-151.0,0.00019452,2]
[380089148,1755534650935,-480.0,0.00019452,2]
[380089149,1755534650957,-234.97271951,0.00019452,2]
[380089150,1755534650973,-480.0,0.00019452,2]
[380089151,1755534650991,-151.0,0.00019452,2]
[380089152,1755534651010,-151.0,0.00019452,2]
[380089153,1755534651031,-480.0,0.00019452,2]
[380089154,1755534651047,-480.0,0.00019452,2]
[380089155,1755534651065,-1903.66,0.00019452,2]
[380089156,1755534651078,-480.0,0.00019452,2]
[380089157,1755534651094,-480.0,0.00019452,2]
[380089158,1755534651112,-480.0,0.00019452,2]
[380089159,1755534651133,-480.0,0.00019452,2]
[380089160,1755534651149,-480.0,0.00019452,2]
[380089161,1755534651164,-480.0,0.00019452,2]
[380089162,1755534651183,-142.83454609,0.00019452,2]
[380089163,1755534651456,-337.16545391,0.00019452,2]
[380089164,1755534651645,-480.0,0.00019452,2]
[380089165,1755534651655,-480.0,0.00019452,2]
[380089166,1755534651665,-500.0,0.00019473,2]
[380089167,1755534651674,-501.43765191,0.00019473,2]
[380089168,1755534651684,-500.0,0.00019473,2]
[380089169,1755534651694,-500.0,0.00019473,2]
[380089170,1755534651703,-504.31630005,0.00019473,2]
[380089171,1755534651712,-500.0,0.00019473,2]
[380089172,1755534651721,-500.0,0.00019473,2]
[380089173,1755534651731,-500.0,0.00019473,2]
[380089174,1755534651740,-500.0,0.00019473,2]
[380089175,1755534651749,-132.79208391,0.00019473,2]
[380089176,1755534652046,-480.0,0.00019178,2]
[380089177,1755534652055,-480.0,0.00019178,2]
[380089178,1755534652065,-480.0,0.00019452,2]
[380089179,1755534652074,-480.0,0.00019452,2]
[380089180,1755534652083,-367.20791609,0.00019473,2]
[380089181,1755534652092,-500.0,0.00019473,2]
[380089182,1755534652102,-500.0,0.00019473,2]
[380089183,1755534652111,-500.0,0.00019473,2]
[380089184,1755534652125,-500.14393027,0.00019473,2]
[380089185,1755534652134,-622.24374581,0.00019473,2]
[380089186,1755534652143,-444.93257665,0.00019473,2]
[380089187,1755534652155,-55.06742335,0.00019473,2]
[380089188,1755534652165,-500.0,0.00019473,2]
[380089189,1755534652175,-500.0,0.00019473,2]
[380089190,1755534652184,-151.0,0.00019473,2]
[380089191,1755534652194,-182.77662,0.00019473,2]
[380089192,1755534652205,-3027.79050709,0.00019481,2]
[380089193,1755534652215,-151.0,0.000195,2]
[380089194,1755534652225,-281.0,0.00019524,2]
[380089195,1755534652234,-3139.81875585,0.00019536,2]
[380089196,1755534652244,-214.766016,0.0001957,2]
[380089197,1755534652254,-214.766016,0.0001957,2]
[380089198,1755534652264,-162.318845,0.0001957,2]
[380089199,1755534652273,-162.318845,0.0001957,2]
[380089200,1755534652282,-281.0,0.0001957,2]
[380089201,1755534652292,-159.24089783,0.00019591,2]
[380089202,1755534652302,-281.0,0.00019595,2]
[380089203,1755534652312,-151.0,0.000196,2]
[380089204,1755534652321,-151.0,0.000196,2]
[380089205,1755534652330,-152.14744146,0.00019615,2]
[380089206,1755534652340,-1159.031562,0.00019616,2]
[380089207,1755534652350,-225.7133916,0.00019616,2]
[380089208,1755534652360,-243.2153682,0.00019616,2]
[380089209,1755534652369,-153.0,0.00019616,2]
[380089210,1755534652380,-153.0,0.00019616,2]
[380089211,1755534652389,-500.0,0.00019617,2]
[380089212,1755534652398,-151.0,0.0001962,2]
[380089213,1755534652407,-151.0,0.0001962,2]
[380089214,1755534652417,-151.0,0.0001962,2]
[380089215,1755534652426,-500.0,0.0001962,2]
[380089216,1755534652436,-226.8933604,0.0001962,2]
[380089217,1755534652445,-151.29910273,0.0001962,2]
[380089218,1755534652454,-267.1081954,0.0001962,2]
[380089219,1755534652463,-151.93370689,0.0001962,2]
[380089220,1755534652473,-151.0,0.0001962,2]
[380089221,1755534652482,-151.37947602,0.0001962,2]
[380089222,1755534652491,-500.0,0.0001962,2]
[380089223,1755534652502,-151.0,0.0001962,2]
[380089224,1755534652511,-151.0,0.0001962,2]
[380089225,1755534652521,-500.0,0.0001962,2]
[380089226,1755534652531,-500.0,0.0001962,2]
[380089227,1755534652540,-500.0,0.0001962,2]
[380089228,1755534652550,-151.13703646,0.0001962,2]
[380089229,1755534652559,-488.52198794,0.0001962,2]
[380089230,1755534652628,1772.48761853,0.00018551,2]
[380089231,1755534652722,-460.0,0.00019178,2]
[380089232,1755534652732,-461.35159995,0.00019178,2]
[380089233,1755534652743,-4.70568701,0.00019178,2]